[Event "Late-Titled-Tuesday-Blitz-December-26-2023"]
[Site "Chess.com"]
[Date "2023.12.26"]
[Round "3"]
[White "GoltsevDmitry2000"]
[Black "wild3000"]
[Result "1-0"]
[WhiteElo "2681"]
[BlackElo "2468"]
[TimeControl "180+1"]
[EndTime "14:28:20 PST"]
[Termination "GoltsevDmitry2000 won on time"]

1. e4 {[%clk 0:02:54.4]} 1... a6 {[%clk 0:02:59.8]} 2. d4 {[%clk 0:02:52]} 2...
e6 {[%clk 0:02:59.5]} 3. Nf3 {[%clk 0:02:49.5]} 3... b5 {[%clk 0:02:58.1]} 4. a4
{[%clk 0:02:49.2]} 4... b4 {[%clk 0:02:57.9]} 5. c4 {[%clk 0:02:49]} 5... d6
{[%clk 0:02:55.6]} 6. b3 {[%clk 0:02:48.5]} 6... Nf6 {[%clk 0:02:53.8]} 7. Bd3
{[%clk 0:02:47]} 7... Bb7 {[%clk 0:02:53.6]} 8. Qc2 {[%clk 0:02:46.7]} 8... Nbd7
{[%clk 0:02:48]} 9. Bb2 {[%clk 0:02:46.6]} 9... g6 {[%clk 0:02:42.7]} 10. Nbd2
{[%clk 0:02:36.5]} 10... Bg7 {[%clk 0:02:42.3]} 11. O-O {[%clk 0:02:37.2]} 11...
O-O {[%clk 0:02:41.8]} 12. c5 {[%clk 0:02:34.4]} 12... dxc5 {[%clk 0:02:31.1]}
13. dxc5 {[%clk 0:02:35.3]} 13... Nb8 {[%clk 0:02:17]} 14. Rad1 {[%clk
0:02:30.1]} 14... Nc6 {[%clk 0:02:14.7]} 15. Bc4 {[%clk 0:02:26.9]} 15... Qe7
{[%clk 0:02:12.9]} 16. e5 {[%clk 0:02:24.9]} 16... Ng4 {[%clk 0:02:07.2]} 17.
Rfe1 {[%clk 0:02:20.4]} 17... Rfd8 {[%clk 0:02:03.1]} 18. h3 {[%clk 0:02:17.2]}
18... Nh6 {[%clk 0:01:43.4]} 19. Ne4 {[%clk 0:02:16.6]} 19... Nf5 {[%clk
0:01:38.8]} 20. Nf6+ {[%clk 0:02:11.8]} 20... Kh8 {[%clk 0:01:34.6]} 21. g4
{[%clk 0:02:10]} 21... Nh6 {[%clk 0:01:18.2]} 22. Qe2 {[%clk 0:01:35.5]} 22...
Qxc5 {[%clk 0:01:08.3]} 23. Ng5 {[%clk 0:01:35.5]} 23... Na5 {[%clk 0:01:02]}
24. Rc1 {[%clk 0:01:14.5]} 24... Bxf6 {[%clk 0:00:47]} 25. Bxe6 {[%clk
0:00:51.4]} 25... Qb6 {[%clk 0:00:44]} 26. exf6 {[%clk 0:00:48.4]} 26... Re8
{[%clk 0:00:36.6]} 27. Qd2 {[%clk 0:00:23.4]} 27... Nxb3 {[%clk 0:00:34.2]} 28.
Bxb3 {[%clk 0:00:22]} 28... Rxe1+ {[%clk 0:00:30.4]} 29. Qxe1 {[%clk 0:00:20.9]}
29... Rf8 {[%clk 0:00:18.6]} 30. Qe7 {[%clk 0:00:19.6]} 30... Qd6 {[%clk
0:00:18.2]} 31. Qxd6 {[%clk 0:00:18.7]} 31... cxd6 {[%clk 0:00:19.1]} 32. Rc7
{[%clk 0:00:18.8]} 32... Bc8 {[%clk 0:00:11.2]} 33. Bxf7 {[%clk 0:00:13.2]} 1-0

[Event "Late-Titled-Tuesday-Blitz-December-26-2023"]
[Site "Chess.com"]
[Date "2023.12.26"]
[Round "3"]
[White "Skatchkov_V"]
[Black "GoValya"]
[Result "1-0"]
[WhiteElo "2566"]
[BlackElo "2314"]
[TimeControl "180+1"]
[EndTime "14:28:20 PST"]
[Termination "Skatchkov_V won on time"]

1. d4 {[%clk 0:02:59.1]} 1... d5 {[%clk 0:02:52.2]} 2. c4 {[%clk 0:02:58.4]}
2... c6 {[%clk 0:02:52.7]} 3. Nf3 {[%clk 0:02:58.1]} 3... Nf6 {[%clk 0:02:51.6]}
4. Nc3 {[%clk 0:02:58.5]} 4... g6 {[%clk 0:02:51.8]} 5. Bg5 {[%clk 0:02:56.7]}
5... Bg7 {[%clk 0:02:51.3]} 6. Qc2 {[%clk 0:02:54.7]} 6... O-O {[%clk
0:02:48.3]} 7. e3 {[%clk 0:02:54.9]} 7... Nbd7 {[%clk 0:02:43.2]} 8. Rc1 {[%clk
0:02:51.4]} 8... Re8 {[%clk 0:02:33.7]} 9. Be2 {[%clk 0:02:47.1]} 9... dxc4
{[%clk 0:02:32.9]} 10. Bxc4 {[%clk 0:02:46.4]} 10... b5 {[%clk 0:02:25.2]} 11.
Bb3 {[%clk 0:02:24.7]} 11... Ba6 {[%clk 0:01:59.9]} 12. Bh4 {[%clk 0:02:12.5]}
12... Rc8 {[%clk 0:01:45.9]} 13. O-O {[%clk 0:02:03]} 13... b4 {[%clk
0:01:37.5]} 14. Ne2 {[%clk 0:01:42]} 14... c5 {[%clk 0:01:36.9]} 15. Qd2 {[%clk
0:01:28.8]} 15... Ne4 {[%clk 0:01:08.5]} 16. Qc2 {[%clk 0:01:18.7]} 16... Nd6
{[%clk 0:00:46.4]} 17. Ng5 {[%clk 0:01:06.7]} 17... cxd4 {[%clk 0:00:38.8]} 18.
Qd2 {[%clk 0:01:05.5]} 18... dxe3 {[%clk 0:00:34.3]} 19. Qxe3 {[%clk 0:01:06.4]}
19... Rxc1 {[%clk 0:00:25.2]} 20. Rxc1 {[%clk 0:01:05.5]} 20... Ne5 {[%clk
0:00:21.1]} 21. Bg3 {[%clk 0:01:00.3]} 21... Nf5 {[%clk 0:00:20.1]} 22. Qxa7
{[%clk 0:00:58.7]} 22... Nxg3 {[%clk 0:00:17.7]} 23. Nxg3 {[%clk 0:00:58.7]}
23... Qa8 {[%clk 0:00:10.7]} 24. Qxa8 {[%clk 0:00:54.6]} 24... Rxa8 {[%clk
0:00:10.8]} 25. f4 {[%clk 0:00:55.5]} 25... h6 {[%clk 0:00:10.2]} 26. fxe5
{[%clk 0:00:51.9]} 26... hxg5 {[%clk 0:00:10.4]} 27. e6 {[%clk 0:00:52.5]} 27...
f5 {[%clk 0:00:09.1]} 28. Rc7 {[%clk 0:00:50.3]} 28... Bf6 {[%clk 0:00:08.5]}
29. Nf1 {[%clk 0:00:47]} 29... Bd4+ {[%clk 0:00:07.6]} 30. Kh1 {[%clk
0:00:45.6]} 30... Bxf1 {[%clk 0:00:07.7]} 31. Rxe7 {[%clk 0:00:46.3]} 31... Rc8
{[%clk 0:00:07.6]} 32. Rc7 {[%clk 0:00:40.4]} 32... Rxc7 {[%clk 0:00:07.1]} 33.
e7+ {[%clk 0:00:40.9]} 33... Kg7 {[%clk 0:00:05]} 34. e8=Q {[%clk 0:00:39.2]}
34... Rc1 {[%clk 0:00:04]} 35. Qd7+ {[%clk 0:00:34.8]} 35... Kh6 {[%clk
0:00:02.6]} 36. Qxd4 {[%clk 0:00:31.4]} 36... Bd3+ {[%clk 0:00:01.1]} 37. Qg1
{[%clk 0:00:30.4]} 37... Rxg1+ {[%clk 0:00:01.2]} 38. Kxg1 {[%clk 0:00:31.3]}
38... g4 {[%clk 0:00:01.7]} 39. Kf2 {[%clk 0:00:32.2]} 39... Kg5 {[%clk
0:00:02]} 40. Ke3 {[%clk 0:00:32.3]} 40... Be4 {[%clk 0:00:02.5]} 41. g3 {[%clk
0:00:33]} 41... Kf6 {[%clk 0:00:02.5]} 42. Kd4 {[%clk 0:00:33.1]} 42... Ke7
{[%clk 0:00:02.4]} 43. Kc5 {[%clk 0:00:33.4]} 1-0

[Event "Late-Titled-Tuesday-Blitz-December-26-2023"]
[Site "Chess.com"]
[Date "2023.12.26"]
[Round "3"]
[White "thesupera12"]
[Black "Bryanl106"]
[Result "0-1"]
[WhiteElo "2401"]
[BlackElo "2571"]
[TimeControl "180+1"]
[EndTime "14:28:21 PST"]
[Termination "Bryanl106 won by resignation"]

1. Nf3 {[%clk 0:03:00.9]} 1... Nf6 {[%clk 0:02:59.7]} 2. b3 {[%clk 0:02:59.7]}
2... g6 {[%clk 0:02:59.5]} 3. Bb2 {[%clk 0:03:00.6]} 3... Bg7 {[%clk 0:02:59.8]}
4. g3 {[%clk 0:03:00.5]} 4... O-O {[%clk 0:03:00.4]} 5. Bg2 {[%clk 0:03:00.5]}
5... d6 {[%clk 0:03:00.9]} 6. O-O {[%clk 0:03:00.7]} 6... e5 {[%clk 0:03:00.2]}
7. d4 {[%clk 0:02:59.8]} 7... e4 {[%clk 0:03:00.5]} 8. Nfd2 {[%clk 0:03:00]}
8... e3 {[%clk 0:02:56.9]} 9. fxe3 {[%clk 0:03:00.9]} 9... Ng4 {[%clk
0:02:56.4]} 10. Rf3 {[%clk 0:02:53.6]} 10... Bh6 {[%clk 0:02:49.8]} 11. Nf1
{[%clk 0:02:53]} 11... Re8 {[%clk 0:02:48.9]} 12. Qd2 {[%clk 0:02:41.1]} 12...
Qg5 {[%clk 0:02:46.7]} 13. Nc3 {[%clk 0:02:04.9]} 13... Nxe3 {[%clk 0:02:35.2]}
14. Nxe3 {[%clk 0:01:55.8]} 14... Rxe3 {[%clk 0:02:14]} 15. Rxe3 {[%clk
0:01:45.4]} 15... Qxe3+ {[%clk 0:02:12.4]} 16. Qxe3 {[%clk 0:01:46.3]} 16...
Bxe3+ {[%clk 0:02:12.2]} 17. Kf1 {[%clk 0:01:47.2]} 17... Bxd4 {[%clk
0:02:07.6]} 18. Nd5 {[%clk 0:01:47]} 18... Bxb2 {[%clk 0:02:07.7]} 19. Ne7+
{[%clk 0:01:32]} 19... Kf8 {[%clk 0:02:04.1]} 20. Nxc8 {[%clk 0:01:32.9]} 20...
Nc6 {[%clk 0:01:55.8]} 21. Rb1 {[%clk 0:01:32.5]} 21... Bd4 {[%clk 0:01:55.2]}
22. Rd1 {[%clk 0:01:17]} 22... Bc5 {[%clk 0:01:49.1]} 23. b4 {[%clk 0:00:59]}
23... Bxb4 {[%clk 0:01:45.7]} 24. Rb1 {[%clk 0:00:58.1]} 24... Ba5 {[%clk
0:01:06.3]} 25. Rxb7 {[%clk 0:00:52.8]} 25... Rxc8 {[%clk 0:01:06.2]} 26. Bxc6
{[%clk 0:00:51.3]} 26... Bb6 {[%clk 0:01:06.6]} 27. a4 {[%clk 0:00:48.4]} 27...
a5 {[%clk 0:01:05.4]} 28. Kg2 {[%clk 0:00:34.7]} 28... Ke7 {[%clk 0:01:04]} 29.
Bd5 {[%clk 0:00:33.9]} 29... f5 {[%clk 0:00:58.3]} 30. c4 {[%clk 0:00:32.7]}
30... Kd7 {[%clk 0:00:52.9]} 31. Kf3 {[%clk 0:00:28.9]} 31... Re8 {[%clk
0:00:52.2]} 32. e4 {[%clk 0:00:16.8]} 32... fxe4+ {[%clk 0:00:51.3]} 33. Bxe4
{[%clk 0:00:17.7]} 33... Rxe4 {[%clk 0:00:38.5]} 34. Kxe4 {[%clk 0:00:17]} 34...
Kc8 {[%clk 0:00:38.9]} 35. Rxb6 {[%clk 0:00:16.5]} 35... cxb6 {[%clk 0:00:39.8]}
36. Kd5 {[%clk 0:00:15.2]} 36... Kd7 {[%clk 0:00:39.9]} 37. h3 {[%clk
0:00:13.6]} 37... h6 {[%clk 0:00:40]} 38. Kd4 {[%clk 0:00:10.7]} 38... Kc6
{[%clk 0:00:39.2]} 39. Kd3 {[%clk 0:00:05.3]} 39... Kc5 {[%clk 0:00:39.3]} 40.
Kc3 {[%clk 0:00:05.6]} 40... d5 {[%clk 0:00:39.7]} 41. cxd5 {[%clk 0:00:05.2]}
41... Kxd5 {[%clk 0:00:40.6]} 42. Kd3 {[%clk 0:00:05.5]} 42... Kc5 {[%clk
0:00:38.8]} 43. Kc3 {[%clk 0:00:06]} 43... b5 {[%clk 0:00:39.1]} 44. axb5 {[%clk
0:00:06.9]} 44... Kxb5 {[%clk 0:00:40]} 45. Kb3 {[%clk 0:00:06.9]} 45... a4+
{[%clk 0:00:40.4]} 46. Ka3 {[%clk 0:00:07.2]} 46... Ka5 {[%clk 0:00:41]} 47. g4
{[%clk 0:00:05.9]} 47... g5 {[%clk 0:00:41.1]} 48. Ka2 {[%clk 0:00:05.4]} 48...
Kb4 {[%clk 0:00:41.2]} 49. Kb2 {[%clk 0:00:06.1]} 49... a3+ {[%clk 0:00:41.4]}
50. Ka2 {[%clk 0:00:06.8]} 50... Ka4 {[%clk 0:00:41.8]} 51. Ka1 {[%clk
0:00:07.2]} 51... Kb3 {[%clk 0:00:42.1]} 52. Kb1 {[%clk 0:00:08]} 52... Kc3
{[%clk 0:00:42.4]} 53. Ka2 {[%clk 0:00:08.3]} 53... Kd3 {[%clk 0:00:43]} 54. h4
{[%clk 0:00:08.9]} 54... gxh4 {[%clk 0:00:42.6]} 0-1

[Event "Late-Titled-Tuesday-Blitz-December-26-2023"]
[Site "Chess.com"]
[Date "2023.12.26"]
[Round "3"]
[White "aksuliini1"]
[Black "Felix-Rose"]
[Result "1-0"]
[WhiteElo "2476"]
[BlackElo "2240"]
[TimeControl "180+1"]
[EndTime "14:28:22 PST"]
[Termination "aksuliini1 won by checkmate"]

1. e4 {[%clk 0:02:59.7]} 1... e5 {[%clk 0:02:59.8]} 2. Nf3 {[%clk 0:02:59.3]}
2... Nc6 {[%clk 0:03:00.3]} 3. Bb5 {[%clk 0:02:59.4]} 3... a6 {[%clk 0:03:00.4]}
4. Ba4 {[%clk 0:02:58.9]} 4... Nf6 {[%clk 0:03:00.7]} 5. O-O {[%clk 0:02:58.8]}
5... b5 {[%clk 0:03:00.5]} 6. Bb3 {[%clk 0:02:58.5]} 6... Bc5 {[%clk 0:03:01.2]}
7. c3 {[%clk 0:02:56.3]} 7... d6 {[%clk 0:03:01.4]} 8. a4 {[%clk 0:02:55.6]}
8... Rb8 {[%clk 0:03:01.5]} 9. d4 {[%clk 0:02:52.9]} 9... Bb6 {[%clk 0:03:01.9]}
10. a5 {[%clk 0:02:52.9]} 10... Ba7 {[%clk 0:03:02.4]} 11. h3 {[%clk 0:02:34.9]}
11... O-O {[%clk 0:03:01]} 12. Re1 {[%clk 0:02:14.8]} 12... h6 {[%clk
0:02:57.5]} 13. Be3 {[%clk 0:02:10.5]} 13... exd4 {[%clk 0:02:56]} 14. cxd4
{[%clk 0:02:11.4]} 14... Nb4 {[%clk 0:02:56.2]} 15. Nc3 {[%clk 0:02:01.9]} 15...
c5 {[%clk 0:02:54.2]} 16. dxc5 {[%clk 0:01:59.9]} 16... Bxc5 {[%clk 0:02:43.2]}
17. Bxc5 {[%clk 0:01:57]} 17... dxc5 {[%clk 0:02:42.9]} 18. e5 {[%clk
0:01:57.9]} 18... Qxd1 {[%clk 0:02:14.4]} 19. Raxd1 {[%clk 0:01:58.8]} 19... Ne8
{[%clk 0:02:15]} 20. Nd5 {[%clk 0:01:35.1]} 20... c4 {[%clk 0:02:08.7]} 21. Nxb4
{[%clk 0:01:32.3]} 21... cxb3 {[%clk 0:02:08.4]} 22. Nd4 {[%clk 0:01:29.5]}
22... Nc7 {[%clk 0:01:44.3]} 23. Nxb3 {[%clk 0:01:21.5]} 23... Be6 {[%clk
0:01:43.9]} 24. Nc5 {[%clk 0:01:19.4]} 24... Bc8 {[%clk 0:01:36.5]} 25. Nc6
{[%clk 0:01:18.1]} 25... Ra8 {[%clk 0:01:35]} 26. Rd6 {[%clk 0:01:09.8]} 26...
b4 {[%clk 0:01:32.3]} 27. Nxb4 {[%clk 0:01:06.2]} 27... Nb5 {[%clk 0:01:32.1]}
28. Rb6 {[%clk 0:01:03.9]} 28... Re8 {[%clk 0:01:28.4]} 29. Nbxa6 {[%clk
0:01:03.2]} 29... Bxa6 {[%clk 0:01:27.3]} 30. Nxa6 {[%clk 0:01:01.9]} 30... Re6
{[%clk 0:01:08.4]} 31. Rxb5 {[%clk 0:00:53.4]} 31... Rexa6 {[%clk 0:01:04.3]}
32. b4 {[%clk 0:00:53.3]} 32... Rc8 {[%clk 0:01:03.8]} 33. Rd1 {[%clk
0:00:42.9]} 33... Rc4 {[%clk 0:00:59.7]} 34. Rd6 {[%clk 0:00:40.3]} 34... Ra7
{[%clk 0:00:53.2]} 35. a6 {[%clk 0:00:40.2]} 35... Kh7 {[%clk 0:00:50.1]} 36.
Rbb6 {[%clk 0:00:34.7]} 36... Re7 {[%clk 0:00:45.6]} 37. b5 {[%clk 0:00:31.9]}
37... Rxe5 {[%clk 0:00:43.7]} 38. a7 {[%clk 0:00:31.7]} 38... Ra4 {[%clk
0:00:42.4]} 39. Ra6 {[%clk 0:00:31.4]} 39... Re1+ {[%clk 0:00:41.7]} 40. Kh2
{[%clk 0:00:31]} 40... Raa1 {[%clk 0:00:41]} 41. Rxa1 {[%clk 0:00:30.2]} 41...
Rxa1 {[%clk 0:00:40.9]} 42. Ra6 {[%clk 0:00:31.1]} 42... Rxa6 {[%clk 0:00:39.1]}
43. bxa6 {[%clk 0:00:30.6]} 43... h5 {[%clk 0:00:39.5]} 44. a8=Q {[%clk
0:00:30.9]} 44... h4 {[%clk 0:00:39.7]} 45. a7 {[%clk 0:00:31]} 45... f5 {[%clk
0:00:40]} 46. Qd5 {[%clk 0:00:31]} 46... g5 {[%clk 0:00:40.2]} 47. a8=Q {[%clk
0:00:31.6]} 47... g4 {[%clk 0:00:40.3]} 48. Qag8+ {[%clk 0:00:31.8]} 48... Kh6
{[%clk 0:00:40]} 49. Qd2+ {[%clk 0:00:31]} 49... f4 {[%clk 0:00:37.7]} 50. Qxf4+
{[%clk 0:00:30.8]} 50... Kh5 {[%clk 0:00:37.4]} 51. Qh7# {[%clk 0:00:30.3]} 1-0

[Event "Late-Titled-Tuesday-Blitz-December-26-2023"]
[Site "Chess.com"]
[Date "2023.12.26"]
[Round "3"]
[White "GMJustin"]
[Black "sebastianmarinp"]
[Result "0-1"]
[WhiteElo "2234"]
[BlackElo "2460"]
[TimeControl "180+1"]
[EndTime "14:28:23 PST"]
[Termination "sebastianmarinp won on time"]

1. e4 {[%clk 0:02:37.5]} 1... c5 {[%clk 0:02:58.8]} 2. Nf3 {[%clk 0:02:37.2]}
2... d6 {[%clk 0:02:58.9]} 3. d4 {[%clk 0:02:36.2]} 3... cxd4 {[%clk 0:02:59.8]}
4. Nxd4 {[%clk 0:02:35.3]} 4... Nf6 {[%clk 0:03:00]} 5. Nc3 {[%clk 0:02:35.4]}
5... g6 {[%clk 0:03:00.3]} 6. Be3 {[%clk 0:02:33.9]} 6... Bg7 {[%clk 0:02:59.8]}
7. Qd2 {[%clk 0:02:34.2]} 7... O-O {[%clk 0:02:58.8]} 8. Bh6 {[%clk 0:02:20.1]}
8... Nc6 {[%clk 0:02:56.7]} 9. Bxg7 {[%clk 0:02:13.6]} 9... Kxg7 {[%clk
0:02:57.6]} 10. O-O-O {[%clk 0:02:09.2]} 10... Qb6 {[%clk 0:02:38.5]} 11. Nb3
{[%clk 0:01:58.6]} 11... a5 {[%clk 0:02:35.3]} 12. Nd5 {[%clk 0:01:49.5]} 12...
Nxd5 {[%clk 0:02:32.8]} 13. exd5 {[%clk 0:01:49.2]} 13... Ne5 {[%clk 0:02:23.4]}
14. f4 {[%clk 0:01:38.4]} 14... Ng4 {[%clk 0:02:20.5]} 15. Nd4 {[%clk
0:01:30.4]} 15... Bd7 {[%clk 0:02:10.6]} 16. Re1 {[%clk 0:01:10.5]} 16... Rfe8
{[%clk 0:02:02.1]} 17. Be2 {[%clk 0:01:03]} 17... Nf6 {[%clk 0:02:01]} 18. Bf3
{[%clk 0:01:02.7]} 18... a4 {[%clk 0:01:59.2]} 19. f5 {[%clk 0:00:52.7]} 19...
a3 {[%clk 0:01:53.9]} 20. b3 {[%clk 0:00:52.2]} 20... Qa5 {[%clk 0:01:43.6]} 21.
Qxa5 {[%clk 0:00:14.9]} 21... Rxa5 {[%clk 0:01:42.7]} 22. fxg6 {[%clk
0:00:15.6]} 22... hxg6 {[%clk 0:01:41.9]} 23. c4 {[%clk 0:00:15.3]} 23... b5
{[%clk 0:01:35.7]} 24. cxb5 {[%clk 0:00:08.1]} 24... Bxb5 {[%clk 0:01:36.6]} 25.
b4 {[%clk 0:00:07.3]} 25... Rc8+ {[%clk 0:01:30.1]} 26. Kd2 {[%clk 0:00:06.3]}
26... Rc4 {[%clk 0:01:14.8]} 27. bxa5 {[%clk 0:00:05.7]} 27... Rxd4+ {[%clk
0:01:14.7]} 28. Kc3 {[%clk 0:00:05.6]} 28... Ra4 {[%clk 0:01:09.9]} 29. Rxe7
{[%clk 0:00:05]} 29... Rxa5 {[%clk 0:01:08.1]} 30. Kb4 {[%clk 0:00:04.9]} 30...
Ra4+ {[%clk 0:00:51.6]} 31. Kxb5 {[%clk 0:00:05.3]} 31... Rd4 {[%clk 0:00:52.5]}
32. Rd1 {[%clk 0:00:04.5]} 32... Rf4 {[%clk 0:00:51.2]} 33. Rd3 {[%clk
0:00:04.4]} 33... g5 {[%clk 0:00:51.6]} 34. Rxa3 {[%clk 0:00:04.4]} 34... g4
{[%clk 0:00:51.9]} 35. Be2 {[%clk 0:00:04.5]} 35... Rf2 {[%clk 0:00:51.8]} 36.
Bc4 {[%clk 0:00:04.6]} 36... Rxg2 {[%clk 0:00:51.4]} 37. Kc6 {[%clk 0:00:04.2]}
37... Rxh2 {[%clk 0:00:51.3]} 38. Kxd6 {[%clk 0:00:03.9]} 38... Rc2 {[%clk
0:00:50.5]} 39. Raa7 {[%clk 0:00:03.9]} 39... Rxc4 {[%clk 0:00:46.2]} 40. Rxf7+
{[%clk 0:00:03.6]} 40... Kg6 {[%clk 0:00:46.7]} 41. Rg7+ {[%clk 0:00:03.1]}
41... Kf5 {[%clk 0:00:47]} 42. Raf7 {[%clk 0:00:02.7]} 42... Rd4 {[%clk
0:00:45.5]} 43. Kc6 {[%clk 0:00:02.7]} 43... Rxd5 {[%clk 0:00:44]} 44. Rxf6+
{[%clk 0:00:02.4]} 44... Kxf6 {[%clk 0:00:44.5]} 45. Kxd5 {[%clk 0:00:02.5]}
45... Kxg7 {[%clk 0:00:44.5]} 46. Ke4 {[%clk 0:00:03.1]} 46... Kf6 {[%clk
0:00:40.5]} 47. a4 {[%clk 0:00:03.3]} 47... Ke6 {[%clk 0:00:39.8]} 48. a5 {[%clk
0:00:03.2]} 48... Kd6 {[%clk 0:00:40]} 0-1

[Event "Late-Titled-Tuesday-Blitz-December-26-2023"]
[Site "Chess.com"]
[Date "2023.12.26"]
[Round "3"]
[White "Kapitan_Bayan"]
[Black "Championnn-9"]
[Result "1-0"]
[WhiteElo "2325"]
[BlackElo "2506"]
[TimeControl "180+1"]
[EndTime "14:28:31 PST"]
[Termination "Kapitan_Bayan won by checkmate"]

1. e4 {[%clk 0:03:00.9]} 1... d6 {[%clk 0:02:57.7]} 2. d4 {[%clk 0:03:01]} 2...
Nf6 {[%clk 0:02:57.8]} 3. Nc3 {[%clk 0:03:00.5]} 3... Nbd7 {[%clk 0:02:57.9]} 4.
Nf3 {[%clk 0:03:00.5]} 4... e5 {[%clk 0:02:58]} 5. Rg1 {[%clk 0:03:00.8]} 5...
exd4 {[%clk 0:02:56.6]} 6. Qxd4 {[%clk 0:02:59.5]} 6... c6 {[%clk 0:02:48.6]} 7.
Bf4 {[%clk 0:02:58.1]} 7... Qa5 {[%clk 0:02:47.7]} 8. O-O-O {[%clk 0:02:52.6]}
8... Ng4 {[%clk 0:02:30.9]} 9. Bxd6 {[%clk 0:02:08.1]} 9... Bxd6 {[%clk
0:02:29.9]} 10. Qxd6 {[%clk 0:02:08.1]} 10... Nxf2 {[%clk 0:02:29.6]} 11. Rd2
{[%clk 0:02:08.1]} 11... Ng4 {[%clk 0:02:29]} 12. h3 {[%clk 0:02:00]} 12... Nge5
{[%clk 0:02:28.2]} 13. Kb1 {[%clk 0:01:23.5]} 13... g6 {[%clk 0:01:46.1]} 14. b4
{[%clk 0:01:14.5]} 14... Qb6 {[%clk 0:01:30.1]} 15. Nxe5 {[%clk 0:01:11.2]}
15... Qxg1 {[%clk 0:01:29.9]} 16. Nxd7 {[%clk 0:01:07.7]} 16... Qxf1+ {[%clk
0:01:19]} 17. Rd1 {[%clk 0:01:07.4]} 17... Qxd1+ {[%clk 0:01:19.4]} 18. Qxd1
{[%clk 0:00:47.2]} 18... Bxd7 {[%clk 0:01:20.3]} 19. Qd4 {[%clk 0:00:47.4]}
19... O-O {[%clk 0:01:15.3]} 20. Qxd7 {[%clk 0:00:46.5]} 20... Rab8 {[%clk
0:01:05]} 21. e5 {[%clk 0:00:44.6]} 21... Rfd8 {[%clk 0:01:02.6]} 22. Qe7 {[%clk
0:00:42.8]} 22... Rd4 {[%clk 0:01:00.4]} 23. e6 {[%clk 0:00:37.4]} 23... Rf8
{[%clk 0:00:57.2]} 24. Qf6 {[%clk 0:00:29.9]} 24... Rxb4+ {[%clk 0:00:56.3]} 25.
Kc1 {[%clk 0:00:30.4]} 25... Rc4 {[%clk 0:00:33.5]} 26. h4 {[%clk 0:00:13.1]}
26... Rc5 {[%clk 0:00:20.6]} 27. e7 {[%clk 0:00:08.5]} 27... Re8 {[%clk
0:00:20.3]} 28. Ne4 {[%clk 0:00:08.8]} 28... Rd5 {[%clk 0:00:19.4]} 29. Nd6
{[%clk 0:00:07.1]} 29... Rxd6 {[%clk 0:00:19.4]} 30. Qxd6 {[%clk 0:00:07.5]}
30... f5 {[%clk 0:00:19.6]} 31. Qe6+ {[%clk 0:00:07.7]} 31... Kg7 {[%clk
0:00:20.1]} 32. g3 {[%clk 0:00:07.2]} 32... h6 {[%clk 0:00:19.2]} 33. Kd2 {[%clk
0:00:07.1]} 33... a5 {[%clk 0:00:19.6]} 34. Ke3 {[%clk 0:00:07.5]} 34... a4
{[%clk 0:00:17.9]} 35. Kf4 {[%clk 0:00:08]} 35... a3 {[%clk 0:00:17.3]} 36. Ke5
{[%clk 0:00:08.1]} 36... h5 {[%clk 0:00:15.6]} 37. Qf6+ {[%clk 0:00:08.4]} 37...
Kh6 {[%clk 0:00:14.3]} 38. Qf7 {[%clk 0:00:08.2]} 38... Rxe7+ {[%clk 0:00:12.5]}
39. Qxe7 {[%clk 0:00:08.5]} 39... f4 {[%clk 0:00:11.6]} 40. Kf6 {[%clk
0:00:08.3]} 40... g5 {[%clk 0:00:10.1]} 41. Qg7# {[%clk 0:00:08.8]} 1-0

[Event "Late-Titled-Tuesday-Blitz-December-26-2023"]
[Site "Chess.com"]
[Date "2023.12.26"]
[Round "3"]
[White "KorolDimitriy75"]
[Black "MasterofMasters2006"]
[Result "0-1"]
[WhiteElo "2358"]
[BlackElo "2080"]
[TimeControl "180+1"]
[EndTime "14:28:32 PST"]
[Termination "MasterofMasters2006 won by resignation"]

1. d4 {[%clk 0:03:00.9]} 1... Nf6 {[%clk 0:02:41.7]} 2. c4 {[%clk 0:03:00.9]}
2... e6 {[%clk 0:02:41.4]} 3. Nc3 {[%clk 0:03:01.3]} 3... Bb4 {[%clk 0:02:39.9]}
4. Qc2 {[%clk 0:03:01.5]} 4... O-O {[%clk 0:02:38.3]} 5. e4 {[%clk 0:03:01.5]}
5... Bxc3+ {[%clk 0:02:36.6]} 6. bxc3 {[%clk 0:03:01]} 6... c5 {[%clk 0:02:36]}
7. e5 {[%clk 0:02:58.6]} 7... Ne8 {[%clk 0:02:35.8]} 8. Bd3 {[%clk 0:02:58.5]}
8... f5 {[%clk 0:02:34.8]} 9. exf6 {[%clk 0:02:44.3]} 9... Nxf6 {[%clk 0:02:34]}
10. Nf3 {[%clk 0:02:44.9]} 10... Nc6 {[%clk 0:02:33.3]} 11. Ba3 {[%clk
0:02:24.3]} 11... b6 {[%clk 0:02:23.6]} 12. dxc5 {[%clk 0:02:18.1]} 12... bxc5
{[%clk 0:02:23.5]} 13. Bxc5 {[%clk 0:02:19]} 13... d6 {[%clk 0:02:23.5]} 14. Ba3
{[%clk 0:01:54.8]} 14... e5 {[%clk 0:02:19.9]} 15. O-O {[%clk 0:01:47.8]} 15...
h6 {[%clk 0:02:18.8]} 16. h3 {[%clk 0:01:41.3]} 16... Be6 {[%clk 0:02:18.5]} 17.
Rad1 {[%clk 0:01:33.8]} 17... Qc7 {[%clk 0:02:18.3]} 18. Rfe1 {[%clk 0:01:27.4]}
18... Rfd8 {[%clk 0:02:16]} 19. Bf5 {[%clk 0:01:04]} 19... Bxc4 {[%clk
0:02:10.2]} 20. Qa4 {[%clk 0:00:53.4]} 20... Bf7 {[%clk 0:02:03.7]} 21. Rd2
{[%clk 0:00:45.9]} 21... d5 {[%clk 0:01:53.8]} 22. Bb1 {[%clk 0:00:33.5]} 22...
e4 {[%clk 0:01:48.1]} 23. Nd4 {[%clk 0:00:26.5]} 23... Ne5 {[%clk 0:01:41.8]}
24. Nb5 {[%clk 0:00:19.3]} 24... Qc6 {[%clk 0:01:28.3]} 25. Qb4 {[%clk 0:00:11]}
25... a5 {[%clk 0:01:13.3]} 26. Qc5 {[%clk 0:00:09.4]} 26... Qxc5 {[%clk
0:01:09.4]} 27. Bxc5 {[%clk 0:00:10.3]} 27... Nc4 {[%clk 0:01:09.7]} 28. Rdd1
{[%clk 0:00:09.7]} 28... Rdc8 {[%clk 0:01:05.9]} 29. Bd4 {[%clk 0:00:09.4]}
29... Rcb8 {[%clk 0:00:56]} 30. a4 {[%clk 0:00:09.7]} 30... Nd7 {[%clk
0:00:44.2]} 31. Ba2 {[%clk 0:00:08.7]} 31... Ndb6 {[%clk 0:00:43.8]} 32. Bxb6
{[%clk 0:00:07.6]} 32... Nxb6 {[%clk 0:00:41.6]} 33. Nd6 {[%clk 0:00:07.5]}
33... Be6 {[%clk 0:00:41]} 34. Nxe4 {[%clk 0:00:07.1]} 34... Nxa4 {[%clk
0:00:38.3]} 35. Nd6 {[%clk 0:00:06.4]} 35... Nxc3 {[%clk 0:00:27.7]} 36. Rd2
{[%clk 0:00:06]} 36... Nxa2 {[%clk 0:00:27.1]} 37. Rxe6 {[%clk 0:00:05.6]} 37...
Nb4 {[%clk 0:00:25.9]} 38. Re7 {[%clk 0:00:05.2]} 38... Rd8 {[%clk 0:00:24.2]}
39. Nf5 {[%clk 0:00:05.1]} 39... Kf8 {[%clk 0:00:22.6]} 40. Rxg7 {[%clk
0:00:04.4]} 40... a4 {[%clk 0:00:21.6]} 41. Re2 {[%clk 0:00:03.7]} 41... Re8
{[%clk 0:00:18.3]} 42. Rxe8+ {[%clk 0:00:03.5]} 42... Kxe8 {[%clk 0:00:18.3]}
43. Ra7 {[%clk 0:00:04.2]} 43... Rxa7 {[%clk 0:00:17.5]} 0-1